bitfinex/quotes_BTCUSD_20251202
["timestamp","ask_amount","ask_price","bid_price","bid_amount"]
[1764689889210,0.01107051,90330.0,90326.0,0.02034004]
[1764689889440,0.01106966,90337.0,90336.0,0.02198638]
[1764689889638,0.01106966,90337.0,90327.0,0.01107088]
[1764689889639,0.23247198,90334.0,90333.0,0.02198638]
[1764689890050,0.22140755,90332.0,90331.0,0.02198638]
[1764689890223,0.23247782,90332.0,90331.0,0.02198638]
[1764689890527,0.22141773,90327.0,90326.0,0.03125542]
[1764689890934,0.22141773,90327.0,90326.0,0.02198638]
[1764689891165,0.22141554,90328.0,90327.0,0.02198638]
[1764689891379,0.01106782,90352.0,90342.0,0.22138097]
[1764689891522,0.23243799,90347.0,90342.0,0.24336735]
[1764689891733,0.01106868,90345.0,90342.0,0.02198638]
[1764689891925,0.22137657,90344.0,90342.0,0.02198638]
[1764689892111,0.0178,90348.0,90342.0,0.02198638]
[1764689892310,0.01106794,90351.0,90345.0,0.01106868]
[1764689892513,0.01398256,90360.0,90352.0,0.01106782]
[1764689892514,0.01689591,90360.0,90352.0,0.01106782]
[1764689892712,0.01106598,90367.0,90363.0,0.02198638]
[1764689893013,0.03497774,90367.0,90359.0,0.01106696]
[1764689893222,0.01717774,90367.0,90359.0,0.01106696]
[1764689893424,0.01106574,90369.0,90361.0,0.01106672]
[1764689893623,0.03124981,90364.0,90363.0,0.22132952]
[1764689894026,0.00037981,90364.0,90363.0,0.22132952]
[1764689894424,0.00037981,90364.0,90363.0,0.28615952]
[1764689894913,0.00243488,90364.0,90363.0,0.4073959]
[1764689895119,0.00243488,90364.0,90363.0,0.4093959]
[1764689895318,0.00243488,90364.0,90363.0,0.4073959]
[1764689895779,0.00243488,90364.0,90363.0,0.4103959]
[1764689895982,0.00243488,90364.0,90363.0,0.4063959]
[1764689896396,0.01043488,90364.0,90363.0,0.4083959]
[1764689896990,0.01043488,90364.0,90363.0,0.4073959]
[1764689897257,0.01343488,90364.0,90363.0,0.4073959]
[1764689897664,0.01343488,90364.0,90363.0,0.4251959]
[1764689897838,0.01343488,90364.0,90363.0,0.38540952]
[1764689898163,0.01343488,90364.0,90363.0,0.40320952]
[1764689898316,0.01343488,90364.0,90363.0,0.4251959]
[1764689899631,0.00243488,90364.0,90363.0,0.4241959]
[1764689899914,0.00443488,90364.0,90363.0,0.4241959]
[1764689900083,0.01243488,90364.0,90363.0,0.4251959]
[1764689900486,0.01043488,90364.0,90363.0,0.4251959]
[1764689900718,0.01343488,90364.0,90363.0,0.4251959]
[1764689900942,0.0004,90400.0,90399.0,0.24322776]
[1764689901148,0.00051391,90400.0,90399.0,0.29255776]
[1764689902518,0.00051391,90400.0,90399.0,0.45563776]
[1764689902873,0.00051391,90400.0,90375.0,0.011065]
[1764689903110,0.01106329,90389.0,90388.0,0.02198638]
[1764689903315,0.01106366,90386.0,90381.0,0.01106427]
[1764689903522,0.0178,90393.0,90387.0,0.23233267]
[1764689903799,0.0178,90393.0,90378.0,0.04933]
[1764689903800,0.01106353,90387.0,90381.0,0.01106427]
[1764689903947,0.01106329,90389.0,90381.0,0.01106427]
[1764689903948,0.01106304,90391.0,90383.0,0.01106402]
[1764689904284,0.23229635,90402.0,90399.0,0.02198638]
[1764689904478,0.01106109,90407.0,90399.0,0.02198638]
[1764689904479,0.0178,90409.0,90399.0,0.13614638]
[1764689904624,0.0178,90409.0,90399.0,0.23439638]
[1764689905031,0.03497774,90409.0,90399.0,0.21241]
[1764689905232,0.05538941,90408.0,90399.0,0.07131638]
[1764689905448,0.0110617,90402.0,90399.0,0.07131638]
[1764689905625,0.22175284,90400.0,90399.0,0.07131638]
[1764689905825,0.22175284,90400.0,90390.0,0.22126311]
[1764689905826,0.23232915,90389.0,90388.0,0.02198638]
[1764689906057,0.22642758,90389.0,90388.0,0.02198638]
[1764689906449,0.0110639,90384.0,90377.0,0.04933]
[1764689906654,0.01106439,90380.0,90371.0,0.04933]
[1764689906858,0.23235228,90380.0,90379.0,0.02198638]
[1764689907261,0.23235228,90380.0,90362.0,0.04933]
[1764689907262,0.22132952,90363.0,90362.0,0.04933]
[1764689907531,0.01106868,90345.0,90330.0,0.01107051]
[1764689907708,0.01106868,90345.0,90342.0,0.07131638]
[1764689907709,0.22137852,90343.0,90342.0,0.07131638]
[1764689907953,0.23244812,90343.0,90342.0,0.02198638]
[1764689908156,0.01106904,90342.0,90341.0,0.02198638]
[1764689908356,0.23244812,90343.0,90341.0,0.02198638]
[1764689908357,0.01106892,90343.0,90342.0,0.02198638]
[1764689908800,0.0495,90360.0,90342.0,0.02198638]
[1764689908801,0.01106745,90355.0,90351.0,0.02198638]
[1764689909020,0.01106708,90358.0,90351.0,0.01106794]
[1764689909189,0.23241029,90358.0,90357.0,0.02198638]
[1764689909393,0.23241029,90358.0,90351.0,0.29725519]
[1764689909394,0.22132062,90367.0,90361.0,0.02198638]
[1764689909594,0.01106574,90369.0,90362.0,0.06483]
[1764689909864,0.01106598,90367.0,90362.0,0.01106659]
[1764689910070,0.01106598,90367.0,90359.0,0.01106696]
[1764689910071,0.01106635,90364.0,90359.0,0.01106696]
[1764689910244,0.23240206,90361.0,90357.0,0.01106721]
[1764689910440,0.23240206,90361.0,90354.0,0.01106757]
[1764689910441,0.01106696,90359.0,90354.0,0.01106757]
[1764689910735,0.22135482,90353.0,90348.0,0.22136505]
[1764689910907,0.23242172,90353.0,90352.0,0.02198638]
[1764689911102,0.01106782,90352.0,90351.0,0.02198638]
[1764689911282,0.03362,90363.0,90350.0,0.22136081]
[1764689911481,0.01106659,90362.0,90356.0,0.01106733]
[1764689911690,0.01106684,90360.0,90355.0,0.01106745]
[1764689911851,0.01106659,90362.0,90355.0,0.01106745]
[1764689911852,0.01106659,90362.0,90357.0,0.23241079]
[1764689912052,0.01106659,90362.0,90361.0,0.003]
[1764689912248,0.23241039,90358.0,90353.0,0.33067013]
[1764689912454,0.01106708,90358.0,90357.0,0.02198638]
[1764689912650,0.0178,90364.0,90361.0,0.01106672]
[1764689912864,0.23261101,90372.0,90371.0,0.02198638]
[1764689913110,0.23261101,90372.0,90364.0,0.01106635]
[1764689913111,0.01106684,90360.0,90359.0,0.02198638]
[1764689913281,0.01106794,90351.0,90350.0,0.02198638]
[1764689913707,0.01106794,90351.0,90338.0,0.01106953]
[1764689913708,0.01106941,90339.0,90335.0,0.04933]
[1764689913886,0.01106941,90339.0,90338.0,0.02198638]
[1764689914162,0.01106941,90339.0,90336.0,0.02198638]
[1764689914163,0.22139459,90337.0,90336.0,0.02198638]
[1764689914309,0.01106953,90338.0,90337.0,0.02198638]
[1764689914713,0.23245259,90341.0,90340.0,0.02198638]
[1764689914914,0.01106892,90343.0,90342.0,0.02198638]
[1764689915126,0.23244895,90343.0,90339.0,0.22138797]
[1764689915291,0.0178,90344.0,90341.0,0.22138309]
[1764689915496,0.04432845,90360.0,90356.0,0.02198638]
[1764689915497,0.01106721,90357.0,90356.0,0.02198638]
[1764689915739,0.01106721,90357.0,90349.0,0.01106819]
[1764689915740,0.02886696,90359.0,90358.0,0.02198638]
[1764689915940,0.03362,90361.0,90360.0,0.02198638]
[1764689916142,0.05142,90361.0,90360.0,0.04853259]
[1764689916343,0.27275617,90361.0,90360.0,0.02198638]
[1764689916540,0.27275617,90361.0,90354.0,0.01106757]
[1764689916541,0.23241789,90355.0,90354.0,0.02198638]
[1764689916696,0.0110677,90353.0,90348.0,0.02198638]
[1764689916899,0.0110677,90353.0,90352.0,0.02198638]
[1764689917233,0.0110677,90353.0,90350.0,0.23242793]
[1764689917557,0.23242231,90353.0,90350.0,0.01106806]
[1764689917752,0.01106794,90351.0,90347.0,0.04668]
[1764689917901,0.22136481,90349.0,90347.0,0.04668]
[1764689918097,0.23242943,90350.0,90335.0,0.37546546]
[1764689918098,0.2213767,90344.0,90335.0,0.37546546]
[1764689918324,0.01106904,90342.0,90339.0,0.01106941]
[1764689918526,0.01106892,90343.0,90339.0,0.23245711]
[1764689918729,0.23244532,90344.0,90340.0,0.23245439]
[1764689919375,0.23245555,90340.0,90336.0,0.01106978]
[1764689919577,0.01106892,90343.0,90339.0,0.01106941]
[1764689919781,0.22138399,90341.0,90340.0,0.005]
[1764689920419,0.26571244,90341.0,90340.0,0.005]
[1764689920618,0.22138399,90341.0,90340.0,0.005]
[1764689920820,0.22138399,90341.0,90340.0,0.02698638]
[1764689921334,0.22187399,90341.0,90340.0,0.005]
[1764689921624,0.22139322,90337.0,90335.0,0.00037981]
[1764689921783,0.22188567,90336.0,90335.0,0.00037981]
[1764689922018,0.00049,90336.0,90335.0,0.00037981]
[1764689922216,0.22139322,90337.0,90336.0,0.02198638]
[1764689922774,0.055397,90346.0,90341.0,0.01106917]
[1764689922991,0.055397,90346.0,90345.0,0.02198638]
[1764689923194,0.27676817,90346.0,90345.0,0.02198638]
[1764689923404,0.01306806,90350.0,90349.0,0.02198638]
[1764689923811,0.25222943,90350.0,90349.0,0.02198638]
[1764689924401,0.25222943,90350.0,90349.0,0.03629795]
[1764689924402,0.23442943,90350.0,90349.0,0.03629795]
[1764689924607,0.0198,90350.0,90349.0,0.03629795]
[1764689924803,0.002,90350.0,90349.0,0.25766177]
[1764689924978,0.002,90350.0,90349.0,0.25866177]
[1764689925188,0.002,90350.0,90349.0,0.41474177]
[1764689925394,0.002,90350.0,90349.0,0.39275539]
[1764689925600,0.002,90350.0,90349.0,0.25866177]
[1764689925817,0.002,90350.0,90349.0,0.23667539]
[1764689926026,0.002,90350.0,90349.0,0.25866177]
[1764689926387,0.002,90350.0,90349.0,0.26266177]
[1764689926887,0.002,90350.0,90349.0,0.39275539]
[1764689927101,0.002,90350.0,90349.0,0.41474177]
[1764689927309,0.002,90350.0,90349.0,0.41374177]
[1764689927514,0.002,90350.0,90349.0,0.41474177]
[1764689927918,0.002,90350.0,90349.0,0.41374177]
[1764689928223,0.005,90350.0,90349.0,0.41374177]
[1764689928439,0.005,90350.0,90349.0,0.41874177]
[1764689928878,0.005,90350.0,90349.0,0.43154177]
[1764689929083,0.005,90350.0,90349.0,0.3994302]
[1764689929779,0.002,90350.0,90349.0,0.3994302]
[1764689930197,0.005,90350.0,90349.0,0.3994302]
[1764689930355,0.005,90350.0,90349.0,0.38444382]
[1764689930563,0.002,90350.0,90349.0,0.38444382]
[1764689930768,0.002,90350.0,90349.0,0.4064302]
[1764689930972,0.002,90350.0,90349.0,0.4084302]
[1764689931167,0.002,90350.0,90349.0,0.38644382]
[1764689931574,0.002,90350.0,90349.0,0.3994302]
[1764689932936,0.005,90350.0,90349.0,0.3994302]
[1764689933292,0.002,90350.0,90349.0,0.3994302]
[1764689933709,0.004,90350.0,90349.0,0.3994302]
[1764689934112,0.002,90350.0,90349.0,0.3994302]
[1764689934317,0.002,90350.0,90349.0,0.5474302]
[1764689934520,0.01776,90387.0,90371.0,0.30558631]
[1764689934728,0.01776,90387.0,90371.0,0.39887631]
[1764689934912,0.01717774,90387.0,90371.0,0.39887631]
[1764689935470,0.01106317,90390.0,90371.0,0.39887631]
[1764689935674,0.02475,90394.0,90371.0,0.39887631]
[1764689935675,0.00035201,90372.0,90371.0,0.39887631]
[1764689935879,0.00035201,90372.0,90371.0,0.40487631]
[1764689936055,0.00035201,90372.0,90371.0,0.38288993]
[1764689936505,0.00035201,90372.0,90371.0,0.42263631]
[1764689937782,0.00035201,90372.0,90371.0,0.40487631]
[1764689938124,0.00135201,90372.0,90371.0,0.40487631]
[1764689938511,0.00135201,90372.0,90371.0,0.39887631]
[1764689938711,0.00135201,90372.0,90371.0,0.37688993]
[1764689938892,0.00135201,90372.0,90371.0,0.22080993]
[1764689939096,0.00035201,90372.0,90371.0,0.24279631]
[1764689939500,0.00335201,90372.0,90371.0,0.24279631]
[1764689939910,0.00035201,90372.0,90371.0,0.24279631]
[1764689940171,0.00035201,90372.0,90371.0,0.39887631]
[1764689940381,0.00035201,90372.0,90371.0,0.40087631]
[1764689940519,0.00035201,90372.0,90371.0,0.08677638]
[1764689940764,0.00035201,90372.0,90371.0,0.30608631]
[1764689940935,0.00035201,90372.0,90371.0,0.08477638]
[1764689941133,0.00035201,90372.0,90371.0,0.08677638]
[1764689941590,0.22165949,90372.0,90371.0,0.02398638]
[1764689941743,0.00035201,90372.0,90371.0,0.02398638]
[1764689942161,0.0110688,90344.0,90341.0,0.148]
[1764689942362,0.01106843,90347.0,90340.0,0.01106929]
[1764689942363,0.23244089,90346.0,90340.0,0.01106929]
[1764689942560,0.01776,90348.0,90347.0,0.02198638]
[1764689942836,0.01776,90348.0,90347.0,0.04853709]
[1764689943047,0.01776,90348.0,90344.0,0.02198638]
[1764689943048,0.25019703,90348.0,90344.0,0.02198638]
[1764689943275,0.01776,90348.0,90347.0,0.02198638]
[1764689943489,0.01787381,90348.0,90347.0,0.02198638]
[1764689944794,0.01106843,90347.0,90344.0,0.001]
[1764689945089,0.01787381,90348.0,90347.0,0.02198638]
[1764689945653,0.01787381,90348.0,90347.0,0.02298638]
[1764689946090,0.12024226,90348.0,90347.0,0.001]
[1764689946289,0.06278226,90348.0,90347.0,0.001]
[1764689947379,0.12024226,90348.0,90347.0,0.001]
[1764689947972,0.06278226,90348.0,90347.0,0.001]
[1764689948172,0.06278226,90348.0,90347.0,0.02298638]
[1764689948347,0.01106929,90340.0,90335.0,0.0110699]
[1764689948559,0.01106892,90343.0,90338.0,0.01106953]
[1764689948560,0.22138292,90342.0,90338.0,0.01106953]
[1764689948755,0.23245196,90342.0,90338.0,0.23245929]
[1764689949111,0.22138043,90343.0,90339.0,0.23245703]
[1764689949426,0.23244336,90345.0,90340.0,0.23245405]
[1764689949634,0.23913695,90344.0,90340.0,0.01106929]
[1764689949836,0.23913695,90344.0,90341.0,0.01544097]
[1764689950054,0.00011381,90348.0,90346.0,0.22137051]
[1764689950259,0.00011381,90348.0,90347.0,0.08733638]
[1764689950471,0.00011381,90348.0,90347.0,0.15765]
[1764689950669,0.00011381,90348.0,90346.0,0.22137051]
[1764689950930,0.00011381,90348.0,90347.0,0.15765]
[1764689951094,0.00011381,90348.0,90345.0,0.01106868]
[1764689951295,0.00011381,90348.0,90347.0,0.06535]
[1764689951926,0.00011381,90348.0,90347.0,0.17960627]
[1764689952329,0.00011381,90348.0,90347.0,0.20374314]
[1764689952530,0.00011381,90348.0,90347.0,0.02395627]
[1764689952945,0.00011381,90348.0,90347.0,0.002]
[1764689953543,0.00011381,90348.0,90347.0,0.02395627]
[1764689954128,0.00011381,90348.0,90347.0,0.02195627]
[1764689954670,0.00011381,90348.0,90347.0,0.20274314]
[1764689955032,0.00011381,90348.0,90347.0,0.17960627]
[1764689955239,0.00011381,90348.0,90347.0,0.20174314]
[1764689955463,0.00011381,90348.0,90347.0,0.20274314]
[1764689955746,0.00011381,90348.0,90347.0,0.20174314]
[1764689956195,0.00011381,90348.0,90347.0,0.20274314]
[1764689957161,0.00011381,90348.0,90347.0,0.18078687]
[1764689957285,0.00011381,90348.0,90347.0,0.17960627]
[1764689957492,0.00011381,90348.0,90347.0,0.08730627]
[1764689957683,0.00311381,90348.0,90346.0,0.22137008]
[1764689958209,0.00011381,90348.0,90347.0,0.02195627]
[1764689958394,0.23254914,90348.0,90347.0,0.02395627]
[1764689958596,0.28204914,90348.0,90347.0,0.002]
[1764689959610,0.28204914,90348.0,90347.0,0.02395627]
[1764689960238,0.25030914,90348.0,90347.0,0.02395627]
[1764689960443,0.25030914,90348.0,90347.0,0.02195627]
[1764689960801,0.23254914,90348.0,90347.0,0.02195627]
[1764689961039,0.25030914,90348.0,90347.0,0.02195627]
[1764689961241,0.01106917,90341.0,90340.0,0.02195627]
[1764689961656,0.01252917,90341.0,90340.0,0.02195627]
[1764689962023,0.01107051,90330.0,90323.0,0.01107137]
[1764689962228,0.22142331,90325.0,90323.0,0.00553585]
[1764689962488,0.22142331,90325.0,90323.0,0.02195627]
[1764689962489,0.02475,90324.0,90323.0,0.02195627]
[1764689962619,0.01107149,90322.0,90320.0,0.02195627]
[1764689962822,0.01107149,90322.0,90321.0,0.02195627]
[1764689963234,0.01107149,90322.0,90313.0,0.02195627]
[1764689963235,0.01107248,90314.0,90313.0,0.02195627]
[1764689963451,0.01107248,90314.0,90302.0,0.01107395]
[1764689963452,0.22144715,90315.0,90314.0,0.02195627]
[1764689964067,0.23252662,90313.0,90309.0,0.04927]
[1764689964266,0.23252662,90313.0,90312.0,0.02195627]
[1764689964434,0.01107235,90315.0,90310.0,0.01107297]
[1764689964650,0.23251984,90315.0,90314.0,0.02195627]
[1764689964990,0.23252829,90312.0,90309.0,0.04964981]
[1764689965167,0.23252327,90314.0,90313.0,0.02195627]
[1764689965370,0.01107235,90315.0,90309.0,0.04964981]
[1764689965570,0.22145852,90311.0,90310.0,0.02195627]
[1764689965962,0.22145852,90311.0,90309.0,0.05572219]
[1764689965963,0.25026996,90319.0,90318.0,0.02195627]
[1764689966389,0.01107039,90331.0,90321.0,0.01107162]
[1764689966594,0.01622,90331.0,90328.0,0.02195627]
[1764689966801,0.01622,90331.0,90330.0,0.02195627]
[1764689967593,0.03398,90331.0,90330.0,0.02195627]
[1764689967797,0.03398,90331.0,90328.0,0.23248513]
[1764689967993,0.03398,90331.0,90327.0,0.04927]
[1764689967994,0.01107051,90330.0,90327.0,0.04927]
[1764689968267,0.26645871,90331.0,90328.0,0.22141452]
[1764689968483,0.01107076,90328.0,90319.0,0.01107186]
[1764689968683,0.23248874,90327.0,90323.0,0.01107137]
[1764689969038,0.01107125,90324.0,90319.0,0.01107186]
[1764689969238,0.23249634,90324.0,90323.0,0.02195627]
[1764689969826,0.01107113,90325.0,90324.0,0.02195627]
[1764689970029,0.23249065,90327.0,90326.0,0.02195627]
[1764689970633,0.29044065,90327.0,90326.0,0.02195627]
[1764689971143,0.29044065,90327.0,90317.0,0.22143999]
[1764689971144,0.232512,90319.0,90316.0,0.02195627]
[1764689971345,0.05795,90317.0,90316.0,0.02195627]
[1764689971905,0.01107272,90312.0,90311.0,0.02195627]
[1764689972112,0.29105968,90312.0,90311.0,0.02195627]
[1764689972318,0.33538813,90312.0,90311.0,0.02195627]
[1764689973116,0.33538813,90312.0,90309.0,0.00037981]
[1764689973117,0.22145941,90310.0,90309.0,0.00037981]
[1764689973331,0.22145941,90310.0,90309.0,0.02233608]
[1764689973507,0.22145696,90311.0,90309.0,0.02233608]
[1764689973715,0.22145696,90311.0,90310.0,0.02195627]
[1764689974122,0.27882696,90311.0,90309.0,0.00037981]
[1764689974329,0.05853,90310.0,90309.0,0.00137981]
[1764689974739,0.05853,90310.0,90309.0,0.00037981]
[1764689974940,0.07571,90310.0,90309.0,0.02233608]
[1764689975136,0.07629,90310.0,90309.0,0.02233608]
[1764689975345,0.05795,90310.0,90309.0,0.02233608]
[1764689975553,0.01776,90310.0,90309.0,0.02233608]
[1764689976162,0.22145783,90311.0,90310.0,0.02195627]
[1764689976361,0.23921783,90311.0,90310.0,0.02195627]
[1764689976561,0.29658783,90311.0,90310.0,0.02195627]
[1764689976774,0.01107272,90312.0,90309.0,0.00137981]
[1764689976980,0.23251745,90316.0,90315.0,0.02195627]
[1764689977134,0.23252962,90312.0,90309.0,0.0114529]
[1764689977349,0.05795,90340.0,90315.0,0.06577]
[1764689977561,0.05795,90340.0,90310.0,0.04301]
[1764689977562,0.01107088,90327.0,90323.0,0.01107137]
[1764689977898,0.05878527,90345.0,90339.0,0.01106941]
[1764689977899,0.0110688,90344.0,90339.0,0.01106941]
[1764689978101,0.05878527,90345.0,90344.0,0.02195627]
[1764689978398,0.05878527,90345.0,90330.0,0.11176]
[1764689978399,0.12739395,90345.0,90341.0,0.02195627]
[1764689978634,0.22137994,90343.0,90341.0,0.02195627]
[1764689978845,0.22137994,90343.0,90332.0,0.23247342]
[1764689978846,0.01106941,90339.0,90338.0,0.02195627]
[1764689979057,0.01107125,90324.0,90315.0,0.22144515]
[1764689979260,0.01107088,90327.0,90326.0,0.02195627]
[1764689979868,0.10186845,90342.0,90326.0,0.02195627]
[1764689980040,0.10186845,90342.0,90338.0,0.02195627]
[1764689980041,0.01717774,90341.0,90338.0,0.02195627]
[1764689980241,0.02882941,90339.0,90338.0,0.02195627]
[1764689980443,0.2502201,90339.0,90338.0,0.02195627]
[1764689980652,0.01107039,90331.0,90326.0,0.001]
[1764689980852,0.2214074,90332.0,90331.0,0.02195627]
[1764689981054,0.01107039,90331.0,90325.0,0.01107113]
[1764689981301,0.24965863,90330.0,90329.0,0.02195627]
[1764689981600,0.23248089,90330.0,90329.0,0.02195627]
[1764689982129,0.23250359,90322.0,90321.0,0.02195627]
[1764689982334,0.23250359,90322.0,90307.0,0.04599]
[1764689982335,0.2461947,90316.0,90307.0,0.04599]
[1764689982538,0.2461947,90316.0,90308.0,0.01107321]
[1764689982691,0.2461947,90316.0,90305.0,0.04599]
[1764689983029,0.2466847,90316.0,90306.0,0.01107346]
[1764689983436,0.2466847,90316.0,90308.0,0.01107321]
[1764689983667,0.2466847,90316.0,90306.0,0.01107346]
[1764689984042,0.2466847,90316.0,90315.0,0.00137981]
[1764689985397,0.2466847,90316.0,90315.0,0.00037981]
[1764689985597,0.2466847,90316.0,90315.0,0.00137981]
[1764689986265,0.02524,90316.0,90315.0,0.00137981]
[1764689986674,0.04241774,90316.0,90315.0,0.00137981]
[1764689986876,0.09142774,90316.0,90315.0,0.00137981]
[1764689988065,0.04192774,90316.0,90315.0,0.00137981]
[1764689988231,0.04192774,90316.0,90315.0,0.02333608]
[1764689988426,0.02475,90316.0,90315.0,0.02333608]
[1764689989017,0.02883174,90320.0,90315.0,0.02333608]
[1764689989018,0.24616308,90329.0,90328.0,0.02195627]
[1764689989189,0.22141308,90329.0,90328.0,0.02195627]
[1764689990627,0.24615659,90332.0,90329.0,0.02195627]
[1764689990628,0.02475,90332.0,90329.0,0.02195627]
[1764689990783,0.04251,90332.0,90331.0,0.02195627]
[1764689991222,0.26391548,90332.0,90331.0,0.02195627]
[1764689991630,0.01776,90332.0,90331.0,0.22140793]
[1764689991854,0.01776,90332.0,90331.0,0.2433642]
[1764689992063,0.01776,90332.0,90331.0,0.2443642]
[1764689992265,0.22137424,90345.0,90342.0,0.02195627]
[1764689992401,0.25020746,90343.0,90342.0,0.02195627]
[1764689993456,0.01106745,90355.0,90346.0,0.02195627]
[1764689993696,0.01106745,90355.0,90344.0,0.0110688]
[1764689993697,0.23243571,90348.0,90347.0,0.02195627]
[1764689994278,0.01106782,90352.0,90351.0,0.02195627]
[1764689994487,0.2391119,90354.0,90353.0,0.02195627]
[1764689994687,0.2213416,90359.0,90357.0,0.02195627]
[1764689994888,0.00011383,90358.0,90357.0,0.02195627]
[1764689995249,0.01729157,90358.0,90357.0,0.02195627]
[1764689995673,0.00011383,90358.0,90357.0,0.02195627]
[1764689996078,0.00011383,90358.0,90357.0,0.08872627]
[1764689996274,0.00011383,90358.0,90357.0,0.16639]
[1764689996598,0.00011383,90358.0,90357.0,0.18734627]
[1764689996971,0.00011383,90358.0,90357.0,0.19434627]
[1764689997508,0.00011383,90358.0,90357.0,0.18834627]
[1764689997672,0.00011383,90358.0,90357.0,0.19434627]
[1764689998010,0.00011383,90358.0,90357.0,0.19334627]
[1764689998413,0.00011383,90358.0,90357.0,0.19434627]
[1764689998817,0.00011383,90358.0,90357.0,0.19334627]
[1764689999219,0.00011383,90358.0,90357.0,0.19434627]
[1764689999440,0.00011383,90358.0,90357.0,0.18834627]
[1764689999969,0.00011383,90358.0,90357.0,0.19434627]
[1764690000785,0.00011383,90358.0,90357.0,0.08872627]
[1764690000982,0.00011383,90358.0,90357.0,0.02195627]
[1764690001292,0.00011383,90358.0,90357.0,0.19234627]
[1764690001482,0.00011383,90358.0,90357.0,0.19334627]
[1764690001782,0.00011383,90358.0,90357.0,0.02695627]
[1764690001984,0.00023816,90372.0,90371.0,0.02195627]
[1764690002218,0.00023816,90372.0,90371.0,0.08772627]
[1764690002344,0.00023816,90372.0,90371.0,0.18734627]
[1764690002802,0.0004,90400.0,90399.0,0.22124138]
[1764690003059,0.00051381,90400.0,90399.0,0.35495765]
[1764690003304,0.00051381,90400.0,90399.0,0.45457765]
[1764690003945,0.0004,90410.0,90399.0,0.45457765]
[1764690003946,0.0004,90410.0,90407.0,0.01106109]
[1764690004124,0.0004,90430.0,90429.0,0.24312425]
[1764690004365,0.00051376,90430.0,90429.0,0.45450425]
[1764690006162,0.00051376,90430.0,90429.0,0.21238]
[1764690006365,0.00051376,90430.0,90429.0,0.02295627]
[1764690006567,0.00051376,90430.0,90429.0,0.37985798]
[1764690006770,0.00051376,90430.0,90429.0,0.18064627]
[1764690006941,0.00151376,90430.0,90429.0,0.22116798]
[1764690007144,0.00151376,90430.0,90429.0,0.02195627]
[1764690007463,0.01257203,90430.0,90429.0,0.02195627]
[1764690007661,0.23226303,90415.0,90405.0,0.01106133]
[1764690007861,0.0110606,90411.0,90406.0,0.01526713]
[1764690008061,0.01717774,90414.0,90413.0,0.02195627]
[1764690008268,0.0110595,90420.0,90409.0,0.22121517]
[1764690008445,0.0110595,90420.0,90419.0,0.02195627]
[1764690008885,0.01248762,90420.0,90419.0,0.02195627]
[1764690010096,0.00142812,90420.0,90419.0,0.02195627]
[1764690010299,0.00142812,90420.0,90419.0,0.05259041]
[1764690010504,0.00142812,90420.0,90419.0,0.05109041]
[1764690010707,0.00142812,90420.0,90419.0,0.03063414]
[1764690011383,0.00142812,90420.0,90419.0,0.02763414]
[1764690011568,0.00142812,90420.0,90419.0,0.04958986]
[1764690011938,0.00142812,90420.0,90419.0,0.20827986]
[1764690012137,0.00142812,90420.0,90419.0,0.04958986]
[1764690012534,0.00142812,90420.0,90419.0,0.02195572]
[1764690013068,0.00142812,90420.0,90419.0,0.02495572]
[1764690013441,0.00142812,90420.0,90419.0,0.02295572]
[1764690013844,0.00142812,90420.0,90419.0,0.02695572]
[1764690014127,0.04624657,90420.0,90419.0,0.005]
[1764690014320,0.04624657,90420.0,90419.0,0.001]
[1764690014321,0.09525657,90420.0,90419.0,0.001]
[1764690014735,0.01106121,90406.0,90395.0,0.01106255]
[1764690014943,0.01772,90405.0,90404.0,0.24318486]
[1764690015167,0.01772,90405.0,90404.0,0.03301717]
[1764690015362,0.01105986,90417.0,90410.0,0.01106072]
[1764690015570,0.02877998,90416.0,90415.0,0.02195572]
[1764690016008,0.23226735,90414.0,90413.0,0.02195572]
[1764690016231,0.04432845,90420.0,90419.0,0.02195572]
[1764690016500,0.00051376,90430.0,90429.0,0.02195572]
[1764690017384,0.00109376,90430.0,90429.0,0.02195572]
[1764690017539,0.00109376,90430.0,90414.0,0.04717]
[1764690017540,0.01105864,90427.0,90426.0,0.02195572]
[1764690017972,0.23223009,90428.0,90414.0,0.04717]
[1764690017973,0.01772,90428.0,90414.0,0.04717]
[1764690018175,0.01598,90427.0,90425.0,0.22117738]
[1764690018380,0.01772,90428.0,90427.0,0.02195572]
[1764690019576,0.00051376,90430.0,90429.0,0.02395572]
[1764690019707,0.00051376,90430.0,90426.0,0.22117438]
[1764690019708,0.01105864,90427.0,90426.0,0.02195572]
[1764690019907,0.02929203,90430.0,90429.0,0.02195572]
[1764690020307,0.01823376,90430.0,90429.0,0.02195572]
[1764690020665,0.23222637,90429.0,90428.0,0.02195572]
[1764690020892,0.01823376,90430.0,90427.0,0.01105864]
[1764690021096,0.01823376,90430.0,90429.0,0.02195572]
[1764690021097,0.00051376,90430.0,90429.0,0.02195572]
[1764690021422,0.00223922,90430.0,90429.0,0.02595572]
[1764690021631,0.22340476,90430.0,90429.0,0.02595572]
[1764690021841,0.22340476,90430.0,90429.0,0.004]
[1764690022068,0.26773321,90430.0,90429.0,0.02595572]
[1764690022670,0.26888321,90430.0,90429.0,0.02595572]
[1764690022891,0.26773321,90430.0,90429.0,0.02195572]
[1764690023875,0.22340476,90430.0,90429.0,0.02395572]
[1764690024218,0.26773321,90430.0,90429.0,0.02395572]
[1764690024644,0.26773321,90430.0,90429.0,0.002]
[1764690024845,0.26773321,90430.0,90429.0,0.02395572]
[1764690025022,0.28545321,90430.0,90429.0,0.02395572]
[1764690025230,0.01995922,90430.0,90429.0,0.02872505]
[1764690025438,0.01995922,90430.0,90429.0,0.2451237]
[1764690025776,0.00223922,90430.0,90429.0,0.2451237]
[1764690025950,0.01995922,90430.0,90429.0,0.2451237]
[1764690026404,0.01995922,90430.0,90429.0,0.02195572]
[1764690026616,0.01995922,90430.0,90424.0,0.04717]
[1764690026617,0.01105864,90427.0,90426.0,0.02195572]
[1764690026827,0.01106011,90415.0,90403.0,0.04717]
[1764690027015,0.01772,90414.0,90413.0,0.02195572]
[1764690027215,0.01106035,90413.0,90404.0,0.00582317]
[1764690027421,0.01772,90414.0,90413.0,0.02195572]
[1764690028371,0.01772,90414.0,90405.0,0.02195572]
[1764690028372,0.01106121,90406.0,90405.0,0.02195572]
[1764690028619,0.23228546,90406.0,90405.0,0.02195572]
[1764690029056,0.22122914,90404.0,90403.0,0.001]
[1764690029273,0.30483914,90404.0,90403.0,0.001]
[1764690029711,0.30483914,90404.0,90403.0,0.02295572]
[1764690029941,0.30483914,90404.0,90403.0,0.02195572]
[1764690030172,0.24613914,90404.0,90403.0,0.02195572]
[1764690030412,0.24613914,90404.0,90395.0,0.22124881]
[1764690030413,0.2212466,90397.0,90395.0,0.22124881]
[1764690030630,0.2212466,90397.0,90396.0,0.02195572]
[1764690030853,0.03386,90411.0,90410.0,0.02195572]
[1764690031088,0.27279202,90411.0,90410.0,0.02195572]